[Event "Titled Tuesday Blitz May 30 Late 2023"]
[White "Gatterer, Florian"]
[Black "egorchess95"]
[WhiteFideId "811688"]
[WhiteElo "2221"]
[BlackElo "2694"]
[Result "1-0"]
[Round "01"]
[TimeControl "180+2"]
[Date "2023.05.31"]
[WhiteClock "0:00:21"]
[BlackClock "0:00:00"]

1. b3 {[%clk 0:03:00]}  d5 {[%clk 0:02:53]} 2. Bb2 {[%clk 0:03:00]}  Bf5 {[%clk 0:02:50]} 3. d3 {[%clk 0:03:00]}  e6 {[%clk 0:02:47]} 4. Nd2 {[%clk 0:02:59]}  Nf6 {[%clk 0:02:45]} 5. g3 {[%clk 0:03:00]}  c5 {[%clk 0:02:44]} 6. Bg2 {[%clk 0:03:00]}  Nc6 {[%clk 0:02:44]} 7. e4 {[%clk 0:03:00]}  dxe4 {[%clk 0:02:43]} 8. dxe4 {[%clk 0:02:59]}  Bg6 {[%clk 0:02:43]} 9. Nh3 {[%clk 0:02:48]}  Bd6 {[%clk 0:02:39]} 10. Qe2 {[%clk 0:02:41]}  e5 {[%clk 0:02:04]} 11. c3 {[%clk 0:02:37]}  Qe7 {[%clk 0:01:55]} 12. Nc4 {[%clk 0:02:36]}  Bc7 {[%clk 0:01:49]} 13. Ne3 {[%clk 0:02:25]}  Ba5 {[%clk 0:01:28]} 14. O-O {[%clk 0:02:17]}  O-O {[%clk 0:01:16]} 15. Nd5 {[%clk 0:02:16]}  Nxd5 {[%clk 0:01:16]} 16. exd5 {[%clk 0:02:17]}  Nb8 {[%clk 0:01:16]} 17. c4 {[%clk 0:02:15]}  Nd7 {[%clk 0:01:11]} 18. f4 {[%clk 0:02:15]}  f6 {[%clk 0:01:11]} 19. f5 {[%clk 0:02:13]}  Bf7 {[%clk 0:01:10]} 20. Nf2 {[%clk 0:02:13]}  Bc7 {[%clk 0:01:01]} 21. Ne4 {[%clk 0:02:12]}  Rfd8 {[%clk 0:01:00]} 22. a4 {[%clk 0:02:12]}  Nf8 {[%clk 0:00:59]} 23. Kh1 {[%clk 0:02:08]}  a6 {[%clk 0:00:58]} 24. g4 {[%clk 0:02:04]}  b5 {[%clk 0:00:58]} 25. Rg1 {[%clk 0:02:01]}  bxc4 {[%clk 0:00:55]} 26. bxc4 {[%clk 0:02:01]}  g5 {[%clk 0:00:55]} 27. fxg6 {[%clk 0:01:43]}  Nxg6 {[%clk 0:00:54]} 28. Bc1 {[%clk 0:01:42]}  Nf4 {[%clk 0:00:52]} 29. Qf2 {[%clk 0:01:33]}  Bg6 {[%clk 0:00:49]} 30. Be3 {[%clk 0:01:13]}  Bb6 {[%clk 0:00:44]} 31. a5 {[%clk 0:01:00]}  Ba7 {[%clk 0:00:43]} 32. Bxf4 {[%clk 0:00:57]}  exf4 {[%clk 0:00:41]} 33. Qxf4 {[%clk 0:00:58]}  Rf8 {[%clk 0:00:41]} 34. d6 {[%clk 0:00:54]}  Qe6 {[%clk 0:00:32]} 35. Rgf1 {[%clk 0:00:52]}  Kg7 {[%clk 0:00:30]} 36. h4 {[%clk 0:00:47]}  Rae8 {[%clk 0:00:26]} 37. Ng3 {[%clk 0:00:46]}  Bb8 {[%clk 0:00:24]} 38. Rad1 {[%clk 0:00:40]}  h6 {[%clk 0:00:20]} 39. h5 {[%clk 0:00:36]}  Bh7 {[%clk 0:00:20]} 40. Rfe1 {[%clk 0:00:30]}  Qxe1+ {[%clk 0:00:19]} 41. Rxe1 {[%clk 0:00:31]}  Rxe1+ {[%clk 0:00:20]} 42. Kh2 {[%clk 0:00:31]}  Rd8 {[%clk 0:00:20]} 43. Qf2 {[%clk 0:00:25]}  Re6 {[%clk 0:00:15]} 44. Bd5 {[%clk 0:00:24]}  Rexd6 {[%clk 0:00:14]} 45. Kh3 {[%clk 0:00:23]}  R6d7 {[%clk 0:00:08]} 46. Nf5+ {[%clk 0:00:23]}  Kh8 {[%clk 0:00:01]} 47. Nxh6 {[%clk 0:00:22]}  Rf8 {[%clk 0:00:00]} 48. Nf5 {[%clk 0:00:21]} 1-0


[Site "https://www.chess.com"]

[Event "Titled Tuesday Blitz May 30 Late 2023"]
[White "Sliwicki, Damian"]
[Black "Danielyan, Vahe"]
[WhiteFideId "1127128"]
[BlackFideId "13304828"]
[WhiteElo "2030"]
[BlackElo "2423"]
[Result "0-1"]
[Round "01"]
[TimeControl "180+2"]
[Date "2023.05.31"]
[WhiteClock "0:00:00"]
[BlackClock "0:00:56"]

1. e4 {[%clk 0:02:57]}  c5 {[%clk 0:02:59]} 2. Nf3 {[%clk 0:02:56]}  e6 {[%clk 0:03:00]} 3. d4 {[%clk 0:02:48]}  cxd4 {[%clk 0:03:01]} 4. Nxd4 {[%clk 0:02:49]}  Nc6 {[%clk 0:03:00]} 5. Nc3 {[%clk 0:02:50]}  Qc7 {[%clk 0:03:00]} 6. g3 {[%clk 0:02:50]}  a6 {[%clk 0:03:01]} 7. Bg2 {[%clk 0:02:50]}  Bc5 {[%clk 0:03:01]} 8. Nb3 {[%clk 0:02:46]}  Be7 {[%clk 0:03:01]} 9. O-O {[%clk 0:02:45]}  b5 {[%clk 0:03:01]} 10. Re1 {[%clk 0:02:40]}  d6 {[%clk 0:02:59]} 11. Qg4 {[%clk 0:02:24]}  Ne5 {[%clk 0:02:52]} 12. Qe2 {[%clk 0:02:02]}  Bb7 {[%clk 0:02:53]} 13. f4 {[%clk 0:01:57]}  Nc4 {[%clk 0:02:53]} 14. Kh1 {[%clk 0:01:55]}  Nf6 {[%clk 0:02:51]} 15. e5 {[%clk 0:01:47]}  dxe5 {[%clk 0:02:33]} 16. fxe5 {[%clk 0:01:47]}  Nd7 {[%clk 0:02:33]} 17. Bf4 {[%clk 0:01:29]}  O-O {[%clk 0:02:32]} 18. Ne4 {[%clk 0:01:25]}  Ndxe5 {[%clk 0:02:26]} 19. Nbd2 {[%clk 0:01:13]}  Qb6 {[%clk 0:02:14]} 20. b3 {[%clk 0:01:07]}  Nxd2 {[%clk 0:02:14]} 21. Nxd2 {[%clk 0:00:53]}  Bxg2+ {[%clk 0:02:12]} 22. Qxg2 {[%clk 0:00:53]}  Ng6 {[%clk 0:02:10]} 23. Be3 {[%clk 0:00:52]}  Qc7 {[%clk 0:02:08]} 24. Ne4 {[%clk 0:00:49]}  Rac8 {[%clk 0:02:07]} 25. Rac1 {[%clk 0:00:44]}  Rfd8 {[%clk 0:02:08]} 26. c4 {[%clk 0:00:44]}  Qc6 {[%clk 0:01:48]} 27. cxb5 {[%clk 0:00:36]}  Qxb5 {[%clk 0:01:49]} 28. Rxc8 {[%clk 0:00:34]}  Rxc8 {[%clk 0:01:50]} 29. Bd4 {[%clk 0:00:27]}  Qd5 {[%clk 0:01:42]} 30. Ba1 {[%clk 0:00:20]}  Bb4 {[%clk 0:01:40]} 31. Qb2 {[%clk 0:00:16]}  e5 {[%clk 0:01:39]} 32. Qg2 {[%clk 0:00:14]}  Kh8 {[%clk 0:01:21]} 33. Rf1 {[%clk 0:00:13]}  f6 {[%clk 0:01:21]} 34. h4 {[%clk 0:00:12]}  Ne7 {[%clk 0:01:21]} 35. h5 {[%clk 0:00:10]}  h6 {[%clk 0:01:19]} 36. Qf3 {[%clk 0:00:10]}  Rc2 {[%clk 0:01:14]} 37. Rd1 {[%clk 0:00:10]}  Qa8 {[%clk 0:01:06]} 38. Rd7 {[%clk 0:00:05]}  Rc1+ {[%clk 0:01:01]} 39. Kg2 {[%clk 0:00:05]}  Rxa1 {[%clk 0:01:00]} 40. Rxe7 {[%clk 0:00:06]}  Bxe7 {[%clk 0:01:00]} 41. Kh3 {[%clk 0:00:05]}  Qc8+ {[%clk 0:00:58]} 42. g4 {[%clk 0:00:04]}  Rxa2 {[%clk 0:00:59]} 43. Ng3 {[%clk 0:00:04]}  Rc2 {[%clk 0:00:57]} 44. Qe4 {[%clk 0:00:02]}  Rc3 {[%clk 0:00:57]} 45. Qg6 {[%clk 0:00:02]}  e4 {[%clk 0:00:57]} 46. Kh4 {[%clk 0:00:00]}  f5+ {[%clk 0:00:56]} 0-1


[Site "https://www.chess.com"]

[Event "Titled Tuesday Blitz May 30 Late 2023"]
[White "Domingo Nunez, Ruben"]
[Black "i_like_explosions"]
[WhiteFideId "22245570"]
[WhiteElo "2404"]
[BlackElo "2385"]
[Result "1-0"]
[Round "01"]
[TimeControl "180+2"]
[Date "2023.05.31"]
[WhiteClock "0:00:37"]
[BlackClock "0:00:10"]

1. c4 {[%clk 0:02:53]}  Nf6 {[%clk 0:02:59]} 2. Nf3 {[%clk 0:02:52]}  g6 {[%clk 0:03:00]} 3. g3 {[%clk 0:02:53]}  Bg7 {[%clk 0:03:00]} 4. Bg2 {[%clk 0:02:54]}  d6 {[%clk 0:03:01]} 5. O-O {[%clk 0:02:54]}  O-O {[%clk 0:03:02]} 6. d4 {[%clk 0:02:54]}  c5 {[%clk 0:03:01]} 7. Nc3 {[%clk 0:02:51]}  Nc6 {[%clk 0:03:01]} 8. d5 {[%clk 0:02:42]}  Na5 {[%clk 0:03:01]} 9. Qd3 {[%clk 0:02:41]}  a6 {[%clk 0:02:59]} 10. Re1 {[%clk 0:02:27]}  Rb8 {[%clk 0:02:58]} 11. e4 {[%clk 0:02:17]}  b5 {[%clk 0:02:58]} 12. cxb5 {[%clk 0:02:18]}  axb5 {[%clk 0:02:58]} 13. e5 {[%clk 0:02:16]}  Ne8 {[%clk 0:02:14]} 14. Bf4 {[%clk 0:02:13]}  h6 {[%clk 0:02:03]} 15. h4 {[%clk 0:02:12]}  Bf5 {[%clk 0:02:02]} 16. Qd2 {[%clk 0:02:10]}  Nc7 {[%clk 0:02:01]} 17. Bxh6 {[%clk 0:02:09]}  Nc4 {[%clk 0:01:55]} 18. Qg5 {[%clk 0:02:09]}  f6 {[%clk 0:01:36]} 19. exf6 {[%clk 0:02:07]}  exf6 {[%clk 0:01:37]} 20. Qc1 {[%clk 0:02:07]}  Bxh6 {[%clk 0:01:32]} 21. Qxh6 {[%clk 0:02:07]}  Qd7 {[%clk 0:01:30]} 22. h5 {[%clk 0:01:57]}  g5 {[%clk 0:00:58]} 23. Ne4 {[%clk 0:01:55]}  Qg7 {[%clk 0:00:46]} 24. Qxg7+ {[%clk 0:01:51]}  Kxg7 {[%clk 0:00:47]} 25. b3 {[%clk 0:01:47]}  Bxe4 {[%clk 0:00:46]} 26. Rxe4 {[%clk 0:01:46]}  Ne5 {[%clk 0:00:46]} 27. Rd1 {[%clk 0:01:43]}  b4 {[%clk 0:00:43]} 28. Nd2 {[%clk 0:01:27]}  f5 {[%clk 0:00:34]} 29. Re2 {[%clk 0:01:22]}  Nb5 {[%clk 0:00:33]} 30. Nb1 {[%clk 0:01:14]}  Nd4 {[%clk 0:00:32]} 31. Re3 {[%clk 0:01:14]}  f4 {[%clk 0:00:32]} 32. Re4 {[%clk 0:01:12]}  f3 {[%clk 0:00:30]} 33. Bf1 {[%clk 0:01:12]}  g4 {[%clk 0:00:30]} 34. Nd2 {[%clk 0:01:07]}  Kh6 {[%clk 0:00:17]} 35. Rf4 {[%clk 0:01:00]}  Rf5 {[%clk 0:00:13]} 36. Ne4 {[%clk 0:01:00]}  Rd8 {[%clk 0:00:09]} 37. Rxd4 {[%clk 0:00:49]}  cxd4 {[%clk 0:00:07]} 38. Rxf5 {[%clk 0:00:49]}  d3 {[%clk 0:00:07]} 39. Rxe5 {[%clk 0:00:36]}  dxe5 {[%clk 0:00:08]} 40. d6 {[%clk 0:00:37]}  Kxh5 {[%clk 0:00:08]} 41. Bxd3 {[%clk 0:00:37]}  Kg6 {[%clk 0:00:08]} 42. Bb5 {[%clk 0:00:37]}  Kf5 {[%clk 0:00:08]} 43. Bc6 {[%clk 0:00:35]}  Ke6 {[%clk 0:00:04]} 44. d7 {[%clk 0:00:34]}  Rxd7 {[%clk 0:00:03]} 45. Nc5+ {[%clk 0:00:33]}  Kd6 {[%clk 0:00:02]} 46. Nxd7 {[%clk 0:00:33]}  Kxc6 {[%clk 0:00:03]} 47. Nxe5+ {[%clk 0:00:34]}  Kd5 {[%clk 0:00:04]} 48. Nxg4 {[%clk 0:00:35]}  Ke4 {[%clk 0:00:04]} 49. Nh2 {[%clk 0:00:34]}  Kd3 {[%clk 0:00:05]} 50. Nxf3 {[%clk 0:00:33]}  Kc2 {[%clk 0:00:06]} 51. Nd4+ {[%clk 0:00:33]}  Kb2 {[%clk 0:00:07]} 52. Nc6 {[%clk 0:00:34]}  Ka3 {[%clk 0:00:07]} 53. g4 {[%clk 0:00:35]}  Kxa2 {[%clk 0:00:07]} 54. Nxb4+ {[%clk 0:00:35]}  Kxb3 {[%clk 0:00:08]} 55. Nd3 {[%clk 0:00:36]}  Kc4 {[%clk 0:00:09]} 56. Kg2 {[%clk 0:00:35]}  Kd5 {[%clk 0:00:10]} 57. Kg3 {[%clk 0:00:36]}  Ke6 {[%clk 0:00:11]} 58. f4 {[%clk 0:00:36]}  Kf7 {[%clk 0:00:10]} 59. Kh4 {[%clk 0:00:37]} 1-0


[Site "https://www.chess.com"]

[Event "Titled Tuesday Blitz May 30 Late 2023"]
[White "Rangel, Daniel"]
[Black "Timmermans, Mark"]
[WhiteFideId "2124475"]
[BlackFideId "1026399"]
[WhiteElo "2256"]
[BlackElo "2460"]
[Result "0-1"]
[Round "01"]
[TimeControl "180+2"]
[Date "2023.05.31"]
[WhiteClock "0:02:04"]
[BlackClock "0:02:21"]

1. c4 {[%clk 0:02:57]}  Nf6 {[%clk 0:02:57]} 2. g3 {[%clk 0:02:58]}  e6 {[%clk 0:02:57]} 3. Nc3 {[%clk 0:02:58]}  d5 {[%clk 0:02:58]} 4. Bg2 {[%clk 0:02:58]}  Be7 {[%clk 0:02:58]} 5. Nf3 {[%clk 0:02:57]}  O-O {[%clk 0:02:58]} 6. O-O {[%clk 0:02:58]}  d4 {[%clk 0:02:57]} 7. Na4 {[%clk 0:02:55]}  c5 {[%clk 0:02:53]} 8. b3 {[%clk 0:02:53]}  Nc6 {[%clk 0:02:46]} 9. e3 {[%clk 0:02:52]}  e5 {[%clk 0:02:42]} 10. Ba3 {[%clk 0:02:49]}  b6 {[%clk 0:02:33]} 11. Nxe5 {[%clk 0:02:47]}  Nxe5 {[%clk 0:02:33]} 12. Bxa8 {[%clk 0:02:48]}  Bg4 {[%clk 0:02:34]} 13. f3 {[%clk 0:02:42]}  Bh3 {[%clk 0:02:22]} 14. f4 {[%clk 0:02:17]}  Qxa8 {[%clk 0:02:21]} 15. Rf2 {[%clk 0:02:15]}  Neg4 {[%clk 0:02:21]} 16. Re2 {[%clk 0:02:04]}  d3 {[%clk 0:02:21]} 0-1


[Site "https://www.chess.com"]

[Event "Titled Tuesday Blitz May 30 Late 2023"]
[White "Kakabayev, Mergen"]
[Black "Arnold, Ken"]
[WhiteFideId "14002990"]
[BlackFideId "2056836"]
[WhiteElo "2188"]
[BlackElo "2381"]
[Result "0-1"]
[Round "01"]
[TimeControl "180+2"]
[Date "2023.05.31"]
[WhiteClock "0:02:51"]
[BlackClock "0:02:58"]

1. e4 {[%clk 0:02:58]}  c6 {[%clk 0:03:00]} 2. d4 {[%clk 0:02:58]}  d5 {[%clk 0:03:00]} 3. e5 {[%clk 0:02:58]}  Bf5 {[%clk 0:03:00]} 4. h4 {[%clk 0:02:58]}  h5 {[%clk 0:03:00]} 5. Bd3 {[%clk 0:02:57]}  Bxd3 {[%clk 0:03:00]} 6. Qxd3 {[%clk 0:02:58]}  e6 {[%clk 0:03:00]} 7. Bg5 {[%clk 0:02:58]}  Qb6 {[%clk 0:03:00]} 8. Nd2 {[%clk 0:02:58]}  Nd7 {[%clk 0:03:00]} 9. Ngf3 {[%clk 0:02:57]}  Qb5 {[%clk 0:02:59]} 10. c4 {[%clk 0:02:56]}  dxc4 {[%clk 0:02:59]} 11. Kd1 {[%clk 0:02:51]}  cxd3 {[%clk 0:02:58]} 0-1


[Site "https://www.chess.com"]

[Event "Titled Tuesday Blitz May 30 Late 2023"]
[White "laziestwin"]
[Black "Tymrakiewicz, Rafal"]
[BlackFideId "1108832"]
[WhiteElo "2665"]
[BlackElo "2151"]
[Result "0-1"]
[Round "01"]
[TimeControl "180+2"]
[Date "2023.05.31"]
[WhiteClock "0:00:14"]
[BlackClock "0:00:13"]

1. d4 {[%clk 0:03:00]}  Nf6 {[%clk 0:02:54]} 2. c4 {[%clk 0:03:00]}  g6 {[%clk 0:02:54]} 3. g3 {[%clk 0:03:00]}  Bg7 {[%clk 0:02:54]} 4. Bg2 {[%clk 0:03:00]}  O-O {[%clk 0:02:54]} 5. Nc3 {[%clk 0:03:01]}  d6 {[%clk 0:02:54]} 6. Nf3 {[%clk 0:03:02]}  Nc6 {[%clk 0:02:54]} 7. O-O {[%clk 0:03:02]}  e5 {[%clk 0:02:54]} 8. dxe5 {[%clk 0:03:00]}  dxe5 {[%clk 0:02:50]} 9. Bg5 {[%clk 0:03:00]}  Be6 {[%clk 0:02:28]} 10. Nd2 {[%clk 0:02:51]}  h6 {[%clk 0:02:15]} 11. Bxf6 {[%clk 0:02:51]}  Bxf6 {[%clk 0:02:11]} 12. Nd5 {[%clk 0:02:50]}  Bg7 {[%clk 0:02:11]} 13. Rc1 {[%clk 0:02:44]}  f5 {[%clk 0:02:10]} 14. Nb3 {[%clk 0:02:26]}  e4 {[%clk 0:02:06]} 15. Nc5 {[%clk 0:02:23]}  Bc8 {[%clk 0:01:53]} 16. Qa4 {[%clk 0:02:09]}  Nd4 {[%clk 0:01:46]} 17. Rfe1 {[%clk 0:01:33]}  c6 {[%clk 0:01:45]} 18. Ne3 {[%clk 0:01:22]}  b6 {[%clk 0:01:22]} 19. Nb3 {[%clk 0:01:19]}  Nxb3 {[%clk 0:01:19]} 20. Qxb3 {[%clk 0:01:18]}  Be6 {[%clk 0:01:19]} 21. Red1 {[%clk 0:01:15]}  Qe7 {[%clk 0:01:19]} 22. Qc2 {[%clk 0:00:52]}  Rfd8 {[%clk 0:01:13]} 23. b3 {[%clk 0:00:50]}  Rd4 {[%clk 0:01:04]} 24. Rxd4 {[%clk 0:00:37]}  Bxd4 {[%clk 0:01:05]} 25. Nf1 {[%clk 0:00:37]}  Rd8 {[%clk 0:01:03]} 26. Rd1 {[%clk 0:00:36]}  Bc5 {[%clk 0:00:58]} 27. h4 {[%clk 0:00:29]}  Qf6 {[%clk 0:00:42]} 28. Qc1 {[%clk 0:00:26]}  Rxd1 {[%clk 0:00:37]} 29. Qxd1 {[%clk 0:00:27]}  Qd4 {[%clk 0:00:38]} 30. Qe1 {[%clk 0:00:23]}  a5 {[%clk 0:00:34]} 31. Ne3 {[%clk 0:00:20]}  Bb4 {[%clk 0:00:23]} 32. Qb1 {[%clk 0:00:15]}  Qd2 {[%clk 0:00:19]} 33. Bf1 {[%clk 0:00:11]}  Bc5 {[%clk 0:00:18]} 34. Ng2 {[%clk 0:00:11]}  g5 {[%clk 0:00:16]} 35. hxg5 {[%clk 0:00:11]}  hxg5 {[%clk 0:00:17]} 36. g4 {[%clk 0:00:10]}  Bd4 {[%clk 0:00:10]} 37. gxf5 {[%clk 0:00:09]}  Bxf5 {[%clk 0:00:11]} 38. e3 {[%clk 0:00:10]}  Be5 {[%clk 0:00:10]} 39. Qe1 {[%clk 0:00:07]}  Qxe1 {[%clk 0:00:09]} 40. Nxe1 {[%clk 0:00:08]}  Kg7 {[%clk 0:00:08]} 41. Nc2 {[%clk 0:00:09]}  Kf6 {[%clk 0:00:08]} 42. Nd4 {[%clk 0:00:10]}  Bd7 {[%clk 0:00:08]} 43. Bg2 {[%clk 0:00:09]}  Bxd4 {[%clk 0:00:08]} 44. exd4 {[%clk 0:00:10]}  Kf5 {[%clk 0:00:08]} 45. Kf1 {[%clk 0:00:10]}  Kf4 {[%clk 0:00:09]} 46. Ke2 {[%clk 0:00:11]}  c5 {[%clk 0:00:09]} 47. d5 {[%clk 0:00:08]}  Bg4+ {[%clk 0:00:09]} 48. Kd2 {[%clk 0:00:08]}  Bf5 {[%clk 0:00:09]} 49. Ke2 {[%clk 0:00:06]}  Bg4+ {[%clk 0:00:09]} 50. Ke1 {[%clk 0:00:06]}  Bd7 {[%clk 0:00:09]} 51. Bh1 {[%clk 0:00:06]}  g4 {[%clk 0:00:09]} 52. Kd2 {[%clk 0:00:06]}  Bf5 {[%clk 0:00:08]} 53. a3 {[%clk 0:00:05]}  Bd7 {[%clk 0:00:08]} 54. Ke2 {[%clk 0:00:04]}  a4 {[%clk 0:00:06]} 55. bxa4 {[%clk 0:00:02]}  Bxa4 {[%clk 0:00:07]} 56. Kd2 {[%clk 0:00:03]}  Bd7 {[%clk 0:00:03]} 57. Kc3 {[%clk 0:00:04]}  Bf5 {[%clk 0:00:03]} 58. Kd2 {[%clk 0:00:03]}  Bd7 {[%clk 0:00:02]} 59. Kc3 {[%clk 0:00:04]}  Be8 {[%clk 0:00:02]} 60. Kd2 {[%clk 0:00:04]}  Bg6 {[%clk 0:00:02]} 61. Ke2 {[%clk 0:00:04]}  Bf5 {[%clk 0:00:01]} 62. Bg2 {[%clk 0:00:05]}  Bd7 {[%clk 0:00:02]} 63. Bf1 {[%clk 0:00:05]}  Ba4 {[%clk 0:00:03]} 64. Ke1 {[%clk 0:00:05]}  Bb3 {[%clk 0:00:03]} 65. Be2 {[%clk 0:00:06]}  g3 {[%clk 0:00:03]} 66. fxg3+ {[%clk 0:00:05]}  Kxg3 {[%clk 0:00:03]} 67. Kd2 {[%clk 0:00:05]}  Kf2 {[%clk 0:00:04]} 68. d6 {[%clk 0:00:03]}  e3+ {[%clk 0:00:04]} 69. Kc3 {[%clk 0:00:04]}  Ba4 {[%clk 0:00:04]} 70. Bg4 {[%clk 0:00:04]}  e2 {[%clk 0:00:04]} 71. Bxe2 {[%clk 0:00:02]}  Kxe2 {[%clk 0:00:05]} 72. Kb2 {[%clk 0:00:02]}  Kd3 {[%clk 0:00:05]} 73. d7 {[%clk 0:00:01]}  Bxd7 {[%clk 0:00:04]} 74. Kb3 {[%clk 0:00:02]}  Bc6 {[%clk 0:00:05]} 75. a4 {[%clk 0:00:03]}  Kd4 {[%clk 0:00:05]} 76. Ka3 {[%clk 0:00:03]}  Kxc4 {[%clk 0:00:05]} 77. Kb2 {[%clk 0:00:03]}  Kb4 {[%clk 0:00:05]} 78. Ka2 {[%clk 0:00:04]}  Bxa4 {[%clk 0:00:06]} 79. Kb2 {[%clk 0:00:05]}  c4 {[%clk 0:00:06]} 80. Ka2 {[%clk 0:00:06]}  c3 {[%clk 0:00:07]} 81. Kb1 {[%clk 0:00:06]}  Kc4 {[%clk 0:00:07]} 82. Kc1 {[%clk 0:00:07]}  b5 {[%clk 0:00:08]} 83. Kb1 {[%clk 0:00:08]}  b4 {[%clk 0:00:09]} 84. Kc1 {[%clk 0:00:09]}  Bb3 {[%clk 0:00:09]} 85. Kb1 {[%clk 0:00:10]}  Kd3 {[%clk 0:00:09]} 86. Kc1 {[%clk 0:00:10]}  Bf7 {[%clk 0:00:09]} 87. Kb1 {[%clk 0:00:11]}  Be6 {[%clk 0:00:10]} 88. Kc1 {[%clk 0:00:12]}  Bf7 {[%clk 0:00:11]} 89. Kb1 {[%clk 0:00:13]}  b3 {[%clk 0:00:11]} 90. Kc1 {[%clk 0:00:13]}  b2+ {[%clk 0:00:12]} 91. Kb1 {[%clk 0:00:14]}  c2+ {[%clk 0:00:12]} 92. Kxb2 {[%clk 0:00:15]}  Kd2 {[%clk 0:00:12]} 93. Ka1 {[%clk 0:00:14]}  c1=Q# {[%clk 0:00:13]} 0-1


[Site "https://www.chess.com"]

[Event "Titled Tuesday Blitz May 30 Late 2023"]
[White "Talbi, Chafik"]
[Black "Popilski, Gil"]
[WhiteFideId "7903715"]
[BlackFideId "2809060"]
[WhiteElo "2186"]
[BlackElo "2537"]
[Result "1-0"]
[Round "01"]
[TimeControl "180+2"]
[Date "2023.05.31"]
[WhiteClock "0:00:41"]
[BlackClock "0:00:00"]

1. e4 {[%clk 0:02:58]}  c5 {[%clk 0:02:59]} 2. Nf3 {[%clk 0:02:58]}  d6 {[%clk 0:02:58]} 3. c3 {[%clk 0:02:58]}  Nf6 {[%clk 0:02:58]} 4. Bd3 {[%clk 0:02:57]}  e6 {[%clk 0:02:58]} 5. Bc2 {[%clk 0:02:57]}  Be7 {[%clk 0:02:57]} 6. d4 {[%clk 0:02:57]}  O-O {[%clk 0:02:57]} 7. O-O {[%clk 0:02:57]}  b6 {[%clk 0:02:57]} 8. e5 {[%clk 0:02:50]}  Nd5 {[%clk 0:02:32]} 9. Qd3 {[%clk 0:02:46]}  g6 {[%clk 0:02:18]} 10. a3 {[%clk 0:02:43]}  cxd4 {[%clk 0:02:14]} 11. c4 {[%clk 0:02:34]}  Nc7 {[%clk 0:02:00]} 12. exd6 {[%clk 0:02:15]}  Qxd6 {[%clk 0:01:57]} 13. Qxd4 {[%clk 0:02:13]}  Qxd4 {[%clk 0:01:36]} 14. Nxd4 {[%clk 0:02:12]}  Bf6 {[%clk 0:01:36]} 15. Be3 {[%clk 0:01:53]}  Rd8 {[%clk 0:01:31]} 16. Rd1 {[%clk 0:01:37]}  Bb7 {[%clk 0:01:25]} 17. Nc3 {[%clk 0:01:36]}  Nc6 {[%clk 0:01:17]} 18. Be4 {[%clk 0:01:16]}  Na5 {[%clk 0:00:48]} 19. Bxb7 {[%clk 0:01:07]}  Nxb7 {[%clk 0:00:48]} 20. Ne4 {[%clk 0:00:59]}  Bg7 {[%clk 0:00:46]} 21. Nc6 {[%clk 0:00:52]}  Rxd1+ {[%clk 0:00:41]} 22. Rxd1 {[%clk 0:00:53]}  Na6 {[%clk 0:00:17]} 23. b4 {[%clk 0:00:48]}  Nb8 {[%clk 0:00:00]} 24. Nd8 {[%clk 0:00:41]} 1-0


[Site "https://www.chess.com"]

[Event "Titled Tuesday Blitz May 30 Late 2023"]
[White "Rosen, Eric"]
[Black "Szente Varga, Fruzsina"]
[WhiteFideId "2032562"]
[BlackFideId "712264"]
[WhiteElo "2331"]
[BlackElo "1994"]
[Result "1-0"]
[Round "01"]
[TimeControl "180+2"]
[Date "2023.05.31"]
[WhiteClock "0:02:26"]
[BlackClock "0:00:54"]

1. d4 {[%clk 0:03:00]}  Nf6 {[%clk 0:02:51]} 2. Bf4 {[%clk 0:02:58]}  d5 {[%clk 0:02:45]} 3. e3 {[%clk 0:02:58]}  g6 {[%clk 0:02:45]} 4. Nc3 {[%clk 0:02:58]}  Bg7 {[%clk 0:02:44]} 5. h4 {[%clk 0:02:58]}  c6 {[%clk 0:02:38]} 6. Nf3 {[%clk 0:02:58]}  Bg4 {[%clk 0:02:37]} 7. Qd2 {[%clk 0:02:57]}  Nbd7 {[%clk 0:02:23]} 8. Ne5 {[%clk 0:02:56]}  Nxe5 {[%clk 0:02:18]} 9. Bxe5 {[%clk 0:02:57]}  Qa5 {[%clk 0:02:06]} 10. f3 {[%clk 0:02:55]}  Bd7 {[%clk 0:02:03]} 11. O-O-O {[%clk 0:02:55]}  O-O-O {[%clk 0:01:52]} 12. Kb1 {[%clk 0:02:51]}  b6 {[%clk 0:01:04]} 13. Nxd5 {[%clk 0:02:26]}  Qxd2 {[%clk 0:00:54]} 14. Ba6# {[%clk 0:02:26]} 1-0


[Site "https://www.chess.com"]

[Event "Titled Tuesday Blitz May 30 Late 2023"]
[White "Goryachkina, Aleksandra"]
[Black "Gerbelli Neto, Eduardo"]
[WhiteFideId "4147103"]
[BlackFideId "2103281"]
[WhiteElo "2471"]
[BlackElo "2178"]
[Result "1-0"]
[Round "01"]
[TimeControl "180+2"]
[Date "2023.05.31"]
[WhiteClock "0:00:07"]
[BlackClock "0:00:14"]

1. e4 {[%clk 0:02:58]}  e5 {[%clk 0:02:59]} 2. Nf3 {[%clk 0:02:58]}  Nc6 {[%clk 0:02:59]} 3. Bc4 {[%clk 0:02:57]}  Nf6 {[%clk 0:02:59]} 4. d3 {[%clk 0:02:57]}  Bc5 {[%clk 0:02:58]} 5. c3 {[%clk 0:02:56]}  d6 {[%clk 0:02:59]} 6. h3 {[%clk 0:02:56]}  a5 {[%clk 0:02:59]} 7. Nbd2 {[%clk 0:02:55]}  O-O {[%clk 0:02:58]} 8. Nf1 {[%clk 0:02:51]}  Be6 {[%clk 0:02:58]} 9. Bxe6 {[%clk 0:02:50]}  fxe6 {[%clk 0:02:58]} 10. Ng3 {[%clk 0:02:50]}  d5 {[%clk 0:02:50]} 11. O-O {[%clk 0:02:47]}  Qe8 {[%clk 0:02:44]} 12. d4 {[%clk 0:02:02]}  exd4 {[%clk 0:02:40]} 13. cxd4 {[%clk 0:02:02]}  Bb6 {[%clk 0:02:31]} 14. e5 {[%clk 0:01:34]}  Ne4 {[%clk 0:02:31]} 15. Be3 {[%clk 0:01:31]}  Rd8 {[%clk 0:02:19]} 16. Rc1 {[%clk 0:01:23]}  Nxg3 {[%clk 0:02:11]} 17. fxg3 {[%clk 0:01:23]}  Qg6 {[%clk 0:02:08]} 18. Kh2 {[%clk 0:01:21]}  h6 {[%clk 0:02:06]} 19. a3 {[%clk 0:01:16]}  Ne7 {[%clk 0:02:02]} 20. Qd2 {[%clk 0:01:11]}  Nf5 {[%clk 0:02:00]} 21. Bf2 {[%clk 0:01:11]}  h5 {[%clk 0:01:53]} 22. Rfd1 {[%clk 0:00:43]}  Rd7 {[%clk 0:01:48]} 23. Qe1 {[%clk 0:00:35]}  Rdf7 {[%clk 0:01:45]} 24. b4 {[%clk 0:00:26]}  axb4 {[%clk 0:01:44]} 25. axb4 {[%clk 0:00:26]}  c6 {[%clk 0:01:30]} 26. b5 {[%clk 0:00:18]}  Rc7 {[%clk 0:01:28]} 27. bxc6 {[%clk 0:00:17]}  Rxc6 {[%clk 0:01:28]} 28. Rb1 {[%clk 0:00:16]}  Rf7 {[%clk 0:01:21]} 29. Rb3 {[%clk 0:00:16]}  Bd8 {[%clk 0:01:18]} 30. Rdb1 {[%clk 0:00:15]}  b6 {[%clk 0:01:18]} 31. Ra1 {[%clk 0:00:14]}  Rc2 {[%clk 0:01:18]} 32. Ra8 {[%clk 0:00:13]}  Rf8 {[%clk 0:01:15]} 33. Rc3 {[%clk 0:00:12]}  Rxc3 {[%clk 0:01:13]} 34. Qxc3 {[%clk 0:00:12]}  Qf7 {[%clk 0:00:46]} 35. Qc6 {[%clk 0:00:10]}  Ne7 {[%clk 0:00:41]} 36. Qb5 {[%clk 0:00:10]}  Nf5 {[%clk 0:00:38]} 37. Be1 {[%clk 0:00:10]}  Qc7 {[%clk 0:00:35]} 38. Bb4 {[%clk 0:00:09]}  Rf7 {[%clk 0:00:32]} 39. Qa6 {[%clk 0:00:08]}  Kh7 {[%clk 0:00:31]} 40. Rc8 {[%clk 0:00:08]}  Qd7 {[%clk 0:00:30]} 41. Qa8 {[%clk 0:00:07]}  Be7 {[%clk 0:00:22]} 42. Bxe7 {[%clk 0:00:07]}  Qxe7 {[%clk 0:00:22]} 43. Re8 {[%clk 0:00:08]}  Qb7 {[%clk 0:00:17]} 44. Ng5+ {[%clk 0:00:07]}  Kg6 {[%clk 0:00:17]} 45. Nxf7 {[%clk 0:00:07]}  Kxf7 {[%clk 0:00:14]} 46. Qxb7+ {[%clk 0:00:07]} 1-0


[Site "https://www.chess.com"]